fUSD/lending_fUSD_20250211
["ID","MTS","AMOUNT","RATE_DAILY","PERIOD"]
[352730541,1739280672956,-611.75,0.00011506,2]
[352730542,1739280672965,-500.0,0.00011506,2]
[352730543,1739280672975,-500.0,0.00011506,2]
[352730544,1739280672984,-500.0,0.00011506,2]
[352730545,1739280672994,-500.0,0.00011506,2]
[352730546,1739280673004,-500.0,0.00011506,2]
[352730547,1739280673013,-919.33,0.00011506,2]
[352730548,1739280673023,-500.0,0.00011506,2]
[352730549,1739280673032,-657.54,0.00011506,2]
[352730550,1739280673041,-500.0,0.00011506,2]
[352730551,1739280673051,-532.35,0.00011506,2]
[352730552,1739280673060,-232.11967785,0.00011506,2]
[352730553,1739280673070,-500.0,0.00011506,2]
[352730554,1739280673079,-500.0,0.00011506,2]
[352730555,1739280673089,-500.0,0.00011506,2]
[352730556,1739280673098,-500.0,0.00011506,2]
[352730557,1739280673107,-1065.94,0.00011506,2]
[352730558,1739280673116,-990.82,0.00011506,2]
[352730559,1739280673125,-500.0,0.00011506,2]
[352730560,1739280673134,-500.0,0.00011506,2]
[352730561,1739280673143,-500.0,0.00011506,2]
[352730562,1739280673152,-701.7,0.00011506,2]
[352730563,1739280673161,-778.68,0.00011506,2]
[352730564,1739280673171,-500.0,0.00011506,2]
[352730565,1739280673180,-754.94,0.00011506,2]
[352730566,1739280673189,-602.76,0.00011506,2]
[352730567,1739280673198,-500.0,0.00011506,2]
[352730568,1739280673207,-500.0,0.00011506,2]
[352730569,1739280673216,-862.47,0.00011506,2]
[352730570,1739280673225,-500.0,0.00011506,2]
[352730571,1739280673234,-500.0,0.00011506,2]
[352730572,1739280673244,-500.0,0.00011506,2]
[352730573,1739280673253,-500.0,0.00011506,2]
[352730574,1739280673262,-500.0,0.00011506,2]
[352730575,1739280673271,-950.78,0.00011506,2]
[352730576,1739280673280,-500.0,0.00011506,2]
[352730577,1739280673289,-700.19,0.00011506,2]
[352730578,1739280673298,-709.86,0.00011506,2]
[352730579,1739280673307,-798.47,0.00011506,2]
[352730580,1739280673316,-594.81,0.00011506,2]
[352730581,1739280673325,-812.73,0.00011506,2]
[352730582,1739280673334,-500.0,0.00011506,2]
[352730583,1739280673343,-952.83,0.00011506,2]
[352730584,1739280673352,-500.0,0.00011506,2]
[352730585,1739280673361,-536.47,0.00011506,2]
[352730586,1739280673370,-500.0,0.00011506,2]
[352730587,1739280673379,-963.3,0.00011506,2]
[352730588,1739280673388,-392.70906524,0.00011506,2]
[352730589,1739280673398,-791.25,0.00011506,2]
[352730590,1739280673407,-500.0,0.00011506,2]
[352730591,1739280673417,-500.0,0.00011506,2]
[352730592,1739280673427,-500.0,0.00011506,2]
[352730593,1739280673435,-500.0,0.00011506,2]
[352730594,1739280673444,-500.0,0.00011506,2]
[352730595,1739280673453,-500.0,0.00011506,2]
[352730596,1739280673462,-500.0,0.00011506,2]
[352730597,1739280673471,-500.0,0.00011506,2]
[352730598,1739280673481,-597.19,0.00011506,2]
[352730599,1739280673490,-668.99,0.00011506,2]
[352730600,1739280673499,-500.0,0.00011506,2]
[352730601,1739280673510,-500.0,0.00011506,2]
[352730602,1739280673523,-500.0,0.00011506,2]
[352730603,1739280673532,-1009.87,0.00011506,2]
[352730604,1739280673542,-500.0,0.00011506,2]
[352730605,1739280673551,-500.0,0.00011506,2]
[352730606,1739280673561,-840.52,0.00011506,2]
[352730607,1739280673570,-500.0,0.00011506,2]
[352730608,1739280673579,-500.0,0.00011506,2]
[352730609,1739280673588,-500.0,0.00011506,2]
[352730610,1739280673597,-500.0,0.00011506,2]
[352730611,1739280673606,-801.2,0.00011506,2]
[352730612,1739280673615,-567.35,0.00011506,2]
[352730613,1739280673625,-965.58,0.00011506,2]
[352730614,1739280673634,-813.47,0.00011506,2]
[352730615,1739280673643,-500.0,0.00011506,2]
[352730616,1739280673652,-627.0,0.00011506,2]
[352730617,1739280673662,-500.0,0.00011506,2]
[352730618,1739280673671,-652.97,0.00011506,2]
[352730619,1739280673680,-500.0,0.00011506,2]
[352730620,1739280673689,-500.0,0.00011506,2]
[352730621,1739280673698,-781.76,0.00011506,2]
[352730622,1739280673708,-500.0,0.00011506,2]
[352730623,1739280673717,-510.74,0.00011506,2]
[352730624,1739280673726,-500.0,0.00011506,2]
[352730625,1739280673735,-1155.49,0.00011506,2]
[352730626,1739280673744,-500.0,0.00011506,2]
[352730627,1739280673753,-822.36,0.00011506,2]
[352730628,1739280673762,-684.76,0.00011506,2]
[352730629,1739280673776,-500.0,0.00011506,2]
[352730630,1739280673786,-634.32,0.00011506,2]
[352730631,1739280673794,-500.0,0.00011506,2]
[352730632,1739280673803,-500.0,0.00011506,2]
[352730633,1739280673812,-500.0,0.00011506,2]
[352730634,1739280673821,-515.98,0.00011506,2]
[352730635,1739280673833,-575.36,0.00011506,2]
[352730636,1739280673842,-949.62,0.00011506,2]
[352730637,1739280673851,-806.66,0.00011506,2]
[352730638,1739280673861,-500.0,0.00011506,2]
[352730639,1739280673870,-500.0,0.00011506,2]
[352730640,1739280673879,-500.0,0.00011506,2]
[352730641,1739280673888,-500.0,0.00011506,2]
[352730642,1739280673897,-500.0,0.00011506,2]
[352730643,1739280673908,-1036.54,0.00011506,2]
[352730644,1739280673916,-500.0,0.00011506,2]
[352730645,1739280673925,-500.0,0.00011506,2]
[352730646,1739280673934,-500.0,0.00011506,2]
[352730647,1739280673943,-500.0,0.00011506,2]
[352730648,1739280673951,-500.0,0.00011506,2]
[352730649,1739280673960,-500.0,0.00011506,2]
[352730650,1739280673969,-500.0,0.00011506,2]
[352730651,1739280673977,-639.02,0.00011506,2]
[352730652,1739280673986,-500.0,0.00011506,2]
[352730653,1739280673995,-500.0,0.00011506,2]
[352730654,1739280674004,-1099.86,0.00011506,2]
[352730655,1739280674014,-822.19,0.00011506,2]
[352730656,1739280674024,-500.0,0.00011506,2]
[352730657,1739280674034,-277.67766475,0.00011506,2]
[352730658,1739280674043,-500.0,0.00011506,2]
[352730659,1739280674052,-500.0,0.00011506,2]
[352730660,1739280674061,-723.68,0.00011506,2]
[352730661,1739280674069,-500.0,0.00011506,2]
[352730662,1739280674078,-574.68,0.00011506,2]
[352730663,1739280674088,-1107.36,0.00011506,2]
[352730664,1739280674097,-703.24,0.00011506,2]
[352730665,1739280674105,-565.87,0.00011506,2]
[352730666,1739280674115,-609.74,0.00011506,2]
[352730667,1739280674124,-571.38,0.00011506,2]
[352730668,1739280674133,-500.0,0.00011506,2]
[352730669,1739280674142,-500.0,0.00011506,2]
[352730670,1739280674151,-752.71,0.00011506,2]
[352730671,1739280674161,-1080.71,0.00011506,2]
[352730672,1739280674170,-743.87,0.00011506,2]
[352730673,1739280674179,-500.0,0.00011506,2]
[352730674,1739280674188,-500.0,0.00011506,2]
[352730675,1739280674197,-500.0,0.00011506,2]
[352730676,1739280674206,-500.0,0.00011506,2]
[352730677,1739280674216,-592.34,0.00011506,2]
[352730678,1739280674225,-500.0,0.00011506,2]
[352730679,1739280674234,-1133.19,0.00011506,2]
[352730680,1739280674244,-1162.15,0.00011506,2]
[352730681,1739280674253,-500.0,0.00011506,2]
[352730682,1739280674262,-1088.62,0.00011506,2]
[352730683,1739280674274,-556.3,0.00011506,2]
[352730684,1739280674283,-500.0,0.00011506,2]
[352730685,1739280674292,-500.0,0.00011506,2]
[352730686,1739280674302,-642.45,0.00011506,2]
[352730687,1739280674311,-657.73,0.00011506,2]
[352730688,1739280674320,-543.22,0.00011506,2]
[352730689,1739280674329,-868.71,0.00011506,2]
[352730690,1739280674338,-500.0,0.00011506,2]
[352730691,1739280674347,-500.0,0.00011506,2]
[352730692,1739280674356,-1003.84,0.00011506,2]
[352730693,1739280674366,-500.0,0.00011506,2]
[352730694,1739280674375,-500.0,0.00011506,2]
[352730695,1739280674384,-500.0,0.00011506,2]
[352730696,1739280674394,-500.0,0.00011506,2]
[352730697,1739280674403,-500.0,0.00011506,2]
[352730698,1739280674412,-500.0,0.00011506,2]
[352730699,1739280674422,-500.0,0.00011506,2]
[352730700,1739280674431,-583.71,0.00011506,2]
[352730701,1739280674439,-500.0,0.00011506,2]
[352730702,1739280674449,-1184.98,0.00011506,2]
[352730703,1739280674458,-1086.02,0.00011506,2]
[352730704,1739280674467,-537.67,0.00011506,2]
[352730705,1739280674476,-781.03,0.00011506,2]
[352730706,1739280674486,-2420.99,0.00011506,2]
[352730707,1739280674494,-501.83,0.00011506,2]
[352730708,1739280674503,-500.0,0.00011506,2]
[352730709,1739280674512,-855.48,0.00011506,2]
[352730710,1739280674524,-500.0,0.00011506,2]
[352730711,1739280674534,-1000.0,0.00011506,2]
[352730712,1739280674543,-540.83,0.00011506,2]
[352730713,1739280674552,-500.0,0.00011506,2]
[352730714,1739280674561,-610.65,0.00011506,2]
[352730715,1739280674570,-1852.35,0.00011506,2]
[352730716,1739280674579,-500.0,0.00011506,2]
[352730717,1739280674588,-777.34,0.00011506,2]
[352730718,1739280674597,-500.0,0.00011506,2]
[352730719,1739280674606,-500.0,0.00011506,2]
[352730720,1739280674615,-2139.5,0.00011506,2]
[352730721,1739280674625,-979.52,0.00011506,2]
[352730722,1739280674634,-1080.04,0.00011506,2]
[352730723,1739280674643,-640.51,0.00011506,2]
[352730724,1739280674652,-977.66,0.00011506,2]
[352730725,1739280674661,-500.0,0.00011506,2]
[352730726,1739280674670,-2742.89,0.00011506,2]
[352730727,1739280674679,-1778.52,0.00011506,2]
[352730728,1739280674689,-500.0,0.00011506,2]
[352730729,1739280674698,-500.0,0.00011506,2]
[352730730,1739280674707,-500.0,0.00011506,2]
[352730731,1739280674716,-482.40536194,0.00011506,2]
[352730732,1739280674725,-642.23,0.00011506,2]
[352730733,1739280674734,-1776.94,0.00011506,2]
[352730734,1739280674743,-2559.01,0.00011506,2]
[352730735,1739280674753,-864.88,0.00011506,2]
[352730736,1739280674763,-500.0,0.00011506,2]
[352730737,1739280674773,-500.0,0.00011506,2]
[352730738,1739280674782,-1265.85,0.00011506,2]
[352730739,1739280674792,-1067.75,0.00011506,2]
[352730740,1739280674804,-500.0,0.00011506,2]
[352730741,1739280674814,-2328.6,0.00011506,2]
[352730742,1739280674824,-731.75,0.00011506,2]
[352730743,1739280674837,-523.06,0.00011506,2]
[352730744,1739280674846,-1535.06,0.00011506,2]
[352730745,1739280674856,-500.0,0.00011506,2]
[352730746,1739280674867,-500.0,0.00011506,2]
[352730747,1739280674876,-500.0,0.00011506,2]
[352730748,1739280674886,-683.08,0.00011506,2]
[352730749,1739280674896,-2180.47,0.00011506,2]
[352730750,1739280674905,-1734.23,0.00011506,2]
[352730751,1739280674917,-495.49178678,0.00011506,2]
[352730752,1739280674926,-2009.77,0.00011506,2]
[352730753,1739280674935,-1226.28,0.00011506,2]
[352730754,1739280674945,-550.78,0.00011506,2]
[352730755,1739280674955,-500.0,0.00011506,2]
[352730756,1739280674964,-673.56,0.00011506,2]
[352730757,1739280674974,-500.0,0.00011506,2]
[352730758,1739280674984,-1506.4,0.00011506,2]
[352730759,1739280674994,-1062.82,0.00011506,2]
[352730760,1739280675004,-682.77,0.00011506,2]
[352730761,1739280675015,-656.38,0.00011506,2]
[352730762,1739280675024,-1042.32,0.00011506,2]
[352730763,1739280675034,-1697.73,0.00011506,2]
[352730764,1739280675043,-2419.32,0.00011506,2]
[352730765,1739280675052,-1312.86,0.00011506,2]
[352730766,1739280675062,-665.08,0.00011506,2]
[352730767,1739280675071,-500.0,0.00011506,2]
[352730768,1739280675080,-1584.61,0.00011506,2]
[352730769,1739280675091,-3381.26,0.00011506,2]
[352730770,1739280675100,-1246.46,0.00011506,2]
[352730771,1739280675110,-3490.99,0.00011506,2]
[352730772,1739280675119,-500.0,0.00011506,2]
[352730773,1739280675128,-2048.73,0.00011506,2]
[352730774,1739280675138,-1014.75,0.00011506,2]
[352730775,1739280675148,-1827.08,0.00011506,2]
[352730776,1739280675158,-1904.04,0.00011506,2]
[352730777,1739280675167,-1012.62,0.00011506,2]
[352730778,1739280675177,-2057.77,0.00011506,2]
[352730779,1739280675186,-2490.54,0.00011506,2]
[352730780,1739280675196,-2665.93,0.00011506,2]
[352730781,1739280675206,-1884.66,0.00011506,2]
[352730782,1739280675216,-2212.08,0.00011506,2]
[352730783,1739280675225,-1783.85,0.00011506,2]
[352730784,1739280675235,-2153.24,0.00011506,2]
[352730785,1739280675245,-1538.62,0.00011506,2]
[352730786,1739280675255,-500.0,0.00011506,2]
[352730787,1739280675266,-1386.47,0.00011506,2]
[352730788,1739280675277,-1196.09,0.00011506,2]
[352730789,1739280675288,-1828.07,0.00011506,2]
[352730790,1739280675298,-880.19,0.00011506,2]
[352730791,1739280675307,-2100.82,0.00011506,2]
[352730792,1739280675317,-500.0,0.00011506,2]
[352730793,1739280675327,-2410.54,0.00011506,2]
[352730794,1739280675337,-1422.19,0.00011506,2]
[352730795,1739280675346,-2100.84,0.00011506,2]
[352730796,1739280675356,-2899.84,0.00011506,2]
[352730797,1739280675365,-1035.54,0.00011506,2]
[352730798,1739280675375,-1311.0,0.00011506,2]
[352730799,1739280675384,-443.71669226,0.00011506,2]
[352730800,1739280675394,-2817.66,0.00011506,2]
[352730801,1739280675403,-2368.17,0.00011506,2]
[352730802,1739280675412,-500.0,0.00011506,2]
[352730803,1739280675422,-601.98,0.00011506,2]
[352730804,1739280675431,-500.0,0.00011506,2]
[352730805,1739280675441,-2822.88,0.00011506,2]
[352730806,1739280675450,-653.12,0.00011506,2]
[352730807,1739280675460,-2058.67,0.00011506,2]
[352730808,1739280675470,-1606.08,0.00011506,2]
[352730809,1739280675479,-5880.42,0.00011506,2]
[352730810,1739280675489,-504.16,0.00011506,2]
[352730811,1739280675498,-2313.56,0.00011506,2]
[352730812,1739280675507,-1937.61444423,0.00011506,2]
[352730813,1739280676621,-500.0,0.00010958,2]
[352730814,1739280676630,-90.83182,0.00010958,2]
[352730815,1739280677364,-495.34189017,0.00010956,2]
[352730816,1739280677374,-286.26720155,0.00010956,2]
[352730817,1739280677383,-214.81740138,0.00010958,2]
[352730818,1739280677929,-194.35077862,0.00010958,2]
[352730819,1739280677939,-176.59063958,0.00010958,2]
[352730820,1739280677964,-323.40936042,0.00010958,2]
[352730821,1739280677973,-500.0,0.00010958,2]
[352730822,1739280677982,-500.0,0.00010958,2]
[352730823,1739280677992,-500.0,0.00010958,2]
[352730824,1739280678001,-500.0,0.00010958,2]
[352730825,1739280678010,-500.0,0.00010958,2]
[352730826,1739280678021,-259.03624439,0.00010958,2]
[352730827,1739280678030,-500.0,0.00010958,2]
[352730828,1739280678039,-500.0,0.00010958,2]
[352730829,1739280678049,-500.0,0.00010958,2]
[352730830,1739280678058,-500.0,0.00010958,2]
[352730831,1739280678068,-502.49627225,0.00010958,2]
[352730832,1739280678077,-500.0,0.00010958,2]
[352730833,1739280678086,-500.0,0.00010958,2]
[352730834,1739280678095,-494.36,0.00010958,2]
[352730835,1739280678104,-1109.0,0.00011065,2]
[352730836,1739280678113,-1585.46212294,0.00011065,2]
[352730837,1739280678125,-242.53787706,0.00011065,2]
[352730838,1739280678134,-254.15328755,0.00011095,2]
[352730839,1739280719404,500.0,0.0002,120]
[352730842,1739280950795,-300.0,8.972e-05,2]
[352730843,1739280950820,-9700.0,8.973e-05,2]
[352730844,1739280952030,-10000.0,8.973e-05,2]
[352730845,1739280966653,-300.0,8.973e-05,2]
[352730846,1739280966915,-4127.8361,8.973e-05,2]
[352730847,1739281575812,549.81,8.219e-05,2]
[352730857,1739281763347,-500.0,9.368e-05,2]
[352730858,1739281763369,-160.65,9.642e-05,2]
[352730859,1739281763393,-160.65,9.646e-05,2]
[352730860,1739281763415,-160.65,9.65e-05,2]
[352730861,1739281763437,-160.65,9.654e-05,2]
[352730862,1739281763462,-160.65,9.658e-05,2]
[352730863,1739281763484,-160.65,9.662e-05,2]
[352730864,1739281763506,-160.65,9.666e-05,2]
[352730865,1739281763527,-160.65,9.67e-05,2]
[352730866,1739281763550,-160.65,9.674e-05,2]
[352730867,1739281763573,-160.65,9.678e-05,2]
[352730868,1739281763596,-160.65,9.682e-05,2]
[352730869,1739281763618,-160.65,9.686e-05,2]
[352730870,1739281763640,-160.65,9.69e-05,2]
[352730871,1739281763662,-500.0,9.764e-05,2]
[352730872,1739281763683,-500.0,9.764e-05,2]
[352730873,1739281763707,-500.0,9.764e-05,2]
[352730874,1739281763728,-150.0,9.789e-05,2]
[352730875,1739281763750,-273.86208904,9.789e-05,2]
[352730876,1739281763773,-150.0,9.789e-05,2]
[352730877,1739281763795,-191.65564496,9.789e-05,2]
[352730889,1739281831882,-500.0,9.764e-05,2]
[352730890,1739281831891,-46.14894184,9.789e-05,2]
[352730891,1739281831900,-500.0,9.87e-05,2]
[352730892,1739281831909,-55.9429029,9.916e-05,2]
[352730893,1739281831920,-799.6370971,9.916e-05,2]
[352730894,1739281831929,-250.0,9.999e-05,2]
[352730895,1739281831938,-155.0,0.0001,2]
[352730896,1739281831947,-2000.0,0.00010027,2]
[352730897,1739281831956,-3241.31,0.0001006,2]
[352730898,1739281831965,-997.9,0.0001006,2]
[352730899,1739281831975,-499.99,0.0001006,2]
[352730900,1739281831984,-20992.3,0.0001006,2]
[352730901,1739281831993,-150.0,0.00010076,2]
[352730902,1739281832003,-173.19,0.00010077,2]
[352730903,1739281832013,-3608.06,0.00010077,2]
[352730904,1739281832022,-3004.77,0.00010077,2]
[352730906,1739281832032,-9999.99,0.00010077,2]
[352730908,1739281832042,-6439.48,0.00010077,2]
[352730910,1739281832051,-999.99,0.00010077,2]
[352730912,1739281832061,-150.99,0.00010077,2]
[352730914,1739281832071,-1665.95354142,0.00010077,2]
[352730917,1739281832106,-991.84365945,0.00010077,2]
[352730918,1739281832117,-1037.21460431,0.00010077,2]
[352730919,1739281832128,-4450.85819482,0.00010077,2]
[352730920,1739281832138,-500.0,0.00010106,2]
[352730921,1739281832147,-1000.0,0.00010107,2]
[352730922,1739281832156,-163.86,0.00010135,2]
[352730923,1739281832166,-150.16,0.00010137,2]
[352730924,1739281832175,-500.0,0.00010207,2]
[352730925,1739281832184,-549.81,0.00010462,2]
[352730926,1739281832193,-652.519868,0.00010527,2]
[352730927,1739281832202,-225.30471811,0.00010712,2]
[352730928,1739281832211,-225.3047181,0.00010712,2]
[352730929,1739281832224,-337.95707717,0.00010712,2]
[352730930,1739281832234,-225.30471811,0.00010767,2]
[352730931,1739281832244,-225.3047181,0.00010767,2]
[352730932,1739281832254,-337.95707717,0.00010767,2]
[352730933,1739281832267,-225.30471811,0.00010822,2]
[352730934,1739281832276,-225.3047181,0.00010822,2]
[352730935,1739281832285,-337.95707717,0.00010822,2]
[352730936,1739281832294,-14789.6975,0.00010829,2]
[352730937,1739281832305,-510.5410446,0.00010829,2]
[352730938,1739281832314,-528.35941826,0.00010832,2]
[352730939,1739281832324,-584.12943953,0.00010847,2]
[352730940,1739281832333,-584.12943953,0.00010853,2]
[352730941,1739281832342,-2064.7673136,0.00010855,2]
[352730942,1739281832352,-584.12943953,0.00010858,2]
[352730943,1739281832361,-252.22037761,0.00010858,2]
[352730944,1739281832370,-200.0,0.00010866,2]
[352730945,1739281832379,-15300.2385446,0.00010867,2]
[352730946,1739281832388,-200.0,0.00010869,2]
[352730947,1739281832397,-1070.80590666,0.00010873,2]
[352730948,1739281832407,-1019.14589839,0.00010873,2]
[352730949,1739281832416,-2064.7673136,0.00010875,2]
[352730950,1739281832425,-225.30471811,0.00010877,2]
[352730951,1739281832434,-1312.0,0.00010877,2]
[352730952,1739281832442,-804.0,0.00010877,2]
[352730953,1739281832451,-225.3047181,0.00010877,2]
[352730954,1739281832460,-337.95707717,0.00010877,2]
[352730955,1739281832469,-200.0,0.00010879,2]
[352730956,1739281832478,-2593.9443937,0.00010882,2]
[352730957,1739281832505,-12706.2941509,0.00010882,2]
[352730958,1739281832514,-97497.82741414,0.00010882,2]
[352730959,1739281832523,-97497.82741414,0.00010884,2]
[352730960,1739281832532,-15300.2385446,0.00010885,2]
[352730961,1739281832541,-2064.7673136,0.00010885,2]
[352730962,1739281832552,-364.925213,0.0001089,2]
[352730963,1739281832561,-2064.7673136,0.00010894,2]
[352730964,1739281832571,-32426.54507604,0.00010895,2]
[352730965,1739281832603,-65071.2823381,0.00010895,2]
[352730966,1739281832612,-584.12943953,0.00010895,2]
[352730967,1739281832622,-200.0,0.00010896,2]
[352730968,1739281832631,-82822.6695543,0.00010898,2]
[352730969,1739281837363,-6910.2,0.00010898,2]
[352730973,1739281837423,-377.38393873,0.00010898,2]
[352730975,1739281837435,-4858.56942419,0.00010898,2]
[352730977,1739281837447,-1276.95731813,0.00010898,2]
[352730979,1739281837460,-1252.04717879,0.00010898,2]
[352730981,1739281837470,-500.0,0.00010899,2]
[352730983,1739281837480,-500.0,0.00010899,2]
[352730985,1739281837490,-601.19385833,0.00010899,2]
[352730987,1739281837500,-1371.60500225,0.000109,2]
[352730989,1739281837515,-32449.11544401,0.000109,2]
[352730992,1739281837534,-1680.34574713,0.000109,2]
[352730993,1739281837545,-14426.29258008,0.000109,2]
[352730994,1739281837557,-2067.21978566,0.000109,2]
[352730995,1739281837594,-1264.43557993,0.000109,2]
[352730996,1739281837606,-1583529.78007186,0.000109,2]
[352730997,1739281837617,-19477.94652043,0.000109,2]
[352731006,1739281837810,-6061.52160548,0.000109,2]
[352731008,1739281837825,-1330.04999997,0.000109,2]
[352731183,1739281839499,-291.24,9.764e-05,2]
[352731185,1739281839511,-208.76,9.764e-05,2]
[352731187,1739281839522,-420.47687052,0.000109,2]
[352731188,1739281839583,-20953.01594306,0.000109,2]
[352731189,1739281839594,-321.263,0.000109,2]
[352731190,1739281839605,-297.25919046,0.000109,2]
[352731191,1739281839617,-272.7432708,0.000109,2]
[352731215,1739281842434,-1082.45828242,0.000109,2]
[352731217,1739281842461,-500.0,9.764e-05,2]
[352731218,1739281842471,-1515704.33102721,0.000109,2]
[352731219,1739281842481,-225.30471811,0.00010932,2]
[352731220,1739281842491,-225.3047181,0.00010932,2]
[352731221,1739281842500,-337.95707717,0.00010932,2]
[352731222,1739281842510,-364.925213,0.00010948,2]
[352731223,1739281842521,-158.0,0.00010956,2]
[352731224,1739281842531,-1927.90058555,0.00010957,3]
[352731225,1739281842541,-1000.0,0.00010957,2]
[352731226,1739281842551,-1000.0,0.00010957,2]
[352731227,1739281842561,-1000.0,0.00010957,2]
[352731228,1739281842570,-1000.0,0.00010957,2]
[352731229,1739281842580,-500.0,0.00010958,2]
[352731230,1739281842590,-413.03108018,0.00010958,2]
[352731231,1739281842599,-500.0,0.00010958,2]
[352731232,1739281842609,-499.99535576,0.00010958,2]
[352731233,1739281842618,-500.0,0.00010958,2]
[352731234,1739281842628,-228.46992603,0.00010958,2]
[352731235,1739281842638,-500.0,0.00010958,2]
[352731237,1739281842648,-500.0,0.00010958,2]
[352731239,1739281842657,-503.82641742,0.00010958,2]
[352731240,1739281842667,-500.0,0.00010958,2]
[352731241,1739281842677,-155.518058,0.00010958,2]
[352731242,1739281842686,-500.0,0.00010958,2]
[352731243,1739281842695,-500.0,0.00010958,2]
[352731244,1739281842705,-500.0,0.00010958,2]
[352731245,1739281842715,-500.0,0.00010958,2]
[352731246,1739281842725,-500.0,0.00010958,2]
[352731247,1739281842734,-500.0,0.00010958,2]
[352731248,1739281842744,-747.53493,0.00010958,2]
[352731249,1739281842754,-500.0,0.00010958,2]
[352731250,1739281842764,-2151.62133,0.00010958,2]
[352731251,1739281842777,-500.0,0.00010958,2]
[352731252,1739281842787,-500.0,0.00010958,2]
[352731253,1739281842797,-500.0,0.00010958,2]
[352731254,1739281842807,-160.291153,0.00010958,2]
[352731255,1739281842817,-500.0,0.00010958,2]
[352731256,1739281842827,-500.0,0.00010958,2]
[352731257,1739281842837,-500.0,0.00010958,2]
[352731258,1739281842847,-500.44121385,0.00010958,2]
[352731259,1739281842856,-500.0,0.00010958,2]
[352731260,1739281842866,-393.51967789,0.00010958,2]
[352731261,1739281842876,-500.0,0.00010958,2]
[352731262,1739281842886,-500.0,0.00010958,2]
[352731263,1739281842895,-500.0,0.00010958,2]
[352731264,1739281842905,-500.0,0.00010958,2]
[352731265,1739281842914,-500.0,0.00010958,2]
[352731266,1739281842924,-550.49362388,0.00010958,2]
[352731267,1739281842934,-500.0,0.00010958,2]
[352731268,1739281842944,-500.0,0.00010958,2]
[352731269,1739281842953,-500.0,0.00010958,2]
[352731270,1739281842962,-547.98,0.00010958,2]
[352731271,1739281842971,-549.95583035,0.00010958,2]
[352731272,1739281842981,-500.0,0.00010958,2]
[352731273,1739281842991,-500.0,0.00010958,2]
[352731274,1739281843001,-500.0,0.00010958,2]
[352731275,1739281843010,-500.0,0.00010958,2]
[352731276,1739281843022,-500.0,0.00010958,2]
[352731277,1739281843031,-500.0,0.00010958,2]
[352731278,1739281843040,-500.0,0.00010958,2]
[352731279,1739281843050,-503.9399804,0.00010958,2]
[352731280,1739281843059,-500.0,0.00010958,2]
[352731282,1739281843069,-500.0,0.00010958,2]
[352731283,1739281843078,-500.0,0.00010958,2]
[352731284,1739281843088,-500.0,0.00010958,2]
[352731286,1739281843097,-500.0,0.00010958,2]
[352731288,1739281843107,-500.0,0.00010958,2]
[352731290,1739281843116,-500.0,0.00010958,2]
[352731292,1739281843126,-500.0,0.00010958,2]
[352731294,1739281843135,-500.0,0.00010958,2]
[352731296,1739281843145,-500.0,0.00010958,2]
[352731298,1739281843155,-500.0,0.00010958,2]
[352731300,1739281843164,-500.0,0.00010958,2]
[352731302,1739281843174,-500.0,0.00010958,2]
[352731304,1739281843184,-500.0,0.00010958,2]